{"text_format":"1","workbook":"xlsx","n_sheets":5,"sheets":["VI. PLAN OPERATIVO","VII. RESULTADOS","VIII. RRHH","VIII. GASTOS OPERATIVOS","Hoja3"],"not_rendered":{"charts":0,"images":0,"macros":1,"external_links":0,"defined_names":2,"comments":0,"pivot_tables":0},"unopened":[],"bounds":{"document_bytes":16777216,"sheet_cells":100000,"rows_first":2000,"rows_last":500,"rows_between":2000,"halvings":0,"cell_chars":16384,"cell_head_chars":4096},"cells_cut":0,"cells_raw":0,"read":"whole","date_system":"1900"}

{"sheet":"VI. PLAN OPERATIVO","index":0,"n_rows":26,"n_cols":15,"rows_kept":26,"cut":false,"hidden":false,"merged":[[18,0,20,0],[21,0,23,0],[25,0,25,14],[0,1,0,14],[11,0,14,0],[15,0,16,0],[2,1,3,1],[2,3,2,14],[2,2,3,2],[2,0,3,0]]}
[null,"VI. PLAN OPERATIVO"]
[]
["Objetivo específico/Producto","Actividades que se realizan para cumplir el objetivo específico","Miembros del equipo que realizarán la actividad (nombres y apellidos)","Mes (marcar con una X)"]
[null,null,null,1,2,3,4,5,6,7,8,9,10,11,12]
[]
[]
[]
[]
[]
[]
[]
["Producto: artículo científico\n(plan para la redacción y envío a revista indexada en Scopus)","Revisar literatura científica (publicaciones en revistas indexadas). PRIMER INFORME DE AVANCE",null,null,null,"X"]
[null,"Seleccionar la revista indexada en Scopus y redactar la introducción según el formato de la revista. SEGUNDO INFORME DE AVANCE",null,null,null,null,null,null,"X"]
[null,"Redactar la metodología de la investigación para el artículo según formato de la revista. TERCER INFORME DE AVANCE",null,null,null,null,null,null,null,null,null,"X"]
[null,"Culminar la escritura del artículo científico y envío a una revista indexada en Scopus. INFORME FINAL",null,null,null,null,null,null,null,null,null,null,null,null,"X"]
["Producto: ponencia en un congreso científico - tecnológico ","Identificación del evento científico-tecnológico (No congresos o eventos de corte profesional)",null,null,null,"X"]
[null,"Participación en el evento científico-tecnológico"]
["Producto: evento de difusión dirigido a posibles beneficiarios de los resultados","Realización del evento de difusión"]
["Producto: Trabajo de investigación para optar al grado de Bachiller(*)","Identificar al(los) estudiante(s) de pregrado",null,"X"]
[null,"Asignación Ficha de Trabajo de Investigación",null,"X"]
[null,"Presentación del informe final"]
["Producto: Tesis de pregrado para obtener el Título Profesional(*)","Identificar al(los) tesista(s)",null,"X"]
[null,"Aprobación del Plan de Tesis",null,"X"]
[null,"Solicitud de sustentación de la Tesis"]
[]
["(*) Aplica sólo a proyectos que consideren este producto."]

{"sheet":"VII. RESULTADOS","index":1,"n_rows":21,"n_cols":4,"rows_kept":21,"cut":false,"hidden":false,"merged":[[0,0,0,2],[9,0,10,0],[9,1,10,1],[9,3,10,3],[9,2,10,2],[2,0,3,0],[2,1,3,1],[2,2,3,2]]}
["VII. PROGRAMACIÓN DE LAS ENTREGAS Y RESULTADOS DE LA INVESTIGACIÓN"]
[]
["Informes ","producto a entregar (productos de las actividades realizadas programadas en el punto VI. Plan operativo )","Fecha de entrega"]
[]
["Informe de avance 1",null,"mes 3"]
["Informe de avance 2",null,"mes 6"]
["Informe de avance 3",null,"mes 9"]
["Informe final",null,"mes 12"]
[]
["Resultados ","Descripcción del resultado ","fecha programada para su realización","Informe donde lo presentará"]
[]
["Producto, servicio o proceso, nuevo o mejorado",null,null,"Informe …"]
["Artículo de investigación enviado a una revista indizada en Scopus",null,null,"Informe …"]
["Evento de difusión de resultados dirigido a posibles beneficiarios de los resultados ",null,null,"Informe …"]
["Ponente en al menos un (1) evento científico-tecnológico ",null,null,"Informe …"]
["Trabajos de investigación para obtener el Grado de Bachiller ",null,null,"Informe …"]
["Otros resultados",null,null,"Informe …"]
["Otros resultados",null,null,"Informe …"]
["Otros resultados",null,null,"Informe …"]
["Otros resultados",null,null,"Informe …"]
["Otros resultados",null,null,"Informe …"]

{"sheet":"VIII. RRHH","index":2,"n_rows":19,"n_cols":9,"rows_kept":19,"cut":false,"hidden":false,"merged":[[0,0,0,8],[16,2,18,2],[5,4,6,4],[5,0,6,0],[5,1,6,1],[5,3,6,3],[5,2,6,2],[3,1,3,4],[16,5,16,8],[18,5,18,8]]}
["VIII. 1. RECURSOS HUMANOS"]
[]
[]
["CATEGORÍA DEL PROYECTO:","Proyecto de Investigación en Ciencias Aplicadas tipo 1"]
[]
["Nombres y Apellidos","Rol","Categoría docente","horas/semana\n(referencial)","Pago total \n(bono regular)\nS/","mes 3","mes 6","mes 9","mes 12"]
[null,null,null,null,null,"Informe de avance 1","Informe de avance 2","Informe de avance 3","Informe final"]
[null,"Investigador principal","-- Seleccionar --",null,{"$f":"SUM(F8:I8)","v":0}]
[null,"Co-investigador UTP","-- Seleccionar --",null,{"$f":"SUM(F9:I9)","v":0}]
[null,"Co-investigador UTP","-- Seleccionar --",null,1200,1200]
[null,"Co-investigador UTP","-- Seleccionar --",null,0]
[null,null,"-- Seleccionar --",null,0]
[null,null,"-- Seleccionar --",null,0]
[null,null,"-- Seleccionar --",null,{"$f":"SUM(F14:I14)","v":0}]
[null,null,"-- Seleccionar --",null,0]
[null,null,"-- Seleccionar --",null,0]
[null,null,"RESUMEN DE GASTOS","RRHH",{"$f":"SUM(E8:E16)","v":1200},{"$f":"IFERROR(IF(E17>9000,\"MENSAJE: El monto solicitado excede a los S/. 9,000.\",\" \"),\"\")","v":" "}]
[null,null,null,"Gastos operativos",{"$f":"'VIII. GASTOS OPERATIVOS'!F2","v":0}]
[null,null,null,"TOTAL",{"$f":"SUM(E17:E18)","v":1200},{"$f":"IFERROR(IF(B4=Hoja3!I2,IF(E19>32000,\"MENSAJE: El monto excede el máximo permitido\",\" \"),IF(B4=Hoja3!I3,IF(E19>16000,\"MENSAJE: El monto excede el máximo permitido\",\" \"),IF(B4=Hoja3!I4,IF(E19>12000,\"MENSAJE: El monto excede el máximo permitido\",\" \"),\" \"))),\"\")","v":" "}]

{"sheet":"VIII. GASTOS OPERATIVOS","index":3,"n_rows":24,"n_cols":18,"rows_kept":24,"cut":false,"hidden":false,"merged":[[2,6,2,17],[2,5,3,5],[0,0,0,17],[2,0,3,0],[2,1,3,1],[2,3,3,3],[2,2,3,2],[2,4,3,4]]}
["VIII.2. PROGRAMACIÓN DE LAS COMPRAS Y ADQUISICIONES - GASTOS OPERATIVOS"]
[null,null,null,null,null,{"$f":"F24","v":0}]
["Detalle","Tipo de gasto","cantidad","Unidad de medida","Precio Unitario S/","Precio Total  \nS/","Fecha de gasto (mes) marcar con una X"]
[null,null,null,null,null,null,1,2,3,4,5,6,7,8,9,10,11,12]
[null,null,null,null,null,{"$f":"C5*E5","v":0}]
[null,null,null,null,null,0]
[null,null,null,null,null,{"$f":"C7*E7","v":0}]
[null,null,null,null,null,0]
[null,null,null,null,null,0]
[null,null,null,null,null,0]
[null,null,null,null,null,0]
[null,null,null,null,null,0]
[null,null,null,null,null,0]
[null,null,null,null,null,0]
[null,null,null,null,null,0]
[null,null,null,null,null,0]
[null,null,null,null,null,0]
[null,null,null,null,null,0]
[null,null,null,null,null,0]
[null,null,null,null,null,0]
[null,null,null,null,null,0]
[null,null,null,null,null,0]
[null,null,null,null,null,0]
[null,null,null,null,null,{"$f":"SUM(F5:F23)","v":0}]

{"sheet":"Hoja3","index":4,"n_rows":21,"n_cols":11,"rows_kept":21,"cut":false,"hidden":true,"merged":[[0,6,1,6]]}
["Investigador principal",null,null,null,"CATEGORÍA DEL PROYECTO",null,"Categoría docente",null,"CATEGORÍA DEL PROYECTO","Monto máximo"]
["Co-investigador UTP",null,null,null,"Proyecto de Investigación en Ciencias Aplicadas tipo 1",null,null,null,"Proyecto de Investigación en Ciencias Aplicadas tipo 1",30000,"El monto excede el máximo permitido"]
[null,null,null,null,"Proyecto de Investigación en Ciencias Aplicadas tipo 2",null,"-- Seleccionar --",null,"Proyecto de Investigación en Ciencias Aplicadas tipo 2",16000]
["Materiales e insumos",null,null,null,"Proyecto de investigación en Ciencias Sociales y Humanidades",null,"PTC",null,"Proyecto de investigación en Ciencias Sociales y Humanidades",12000]
["Equipos y bienes duraderos",null,null,null,null,null,"PTP"]
["Viáticos y movilidad local",null,null,null,null,null,"PTCI"]
["Servicio de terceros",null,null,null,null,null,"PTPI"]
["Gastos de gestión"]
[]
["mes 1"]
["mes 2"]
["mes 3"]
["mes 4"]
["mes 5"]
["mes 6"]
["mes 7"]
["mes 8"]
["mes 9"]
["mes 10"]
["mes 11"]
["mes 12"]